fUST/lending_fUST_20241020
["ID","MTS","AMOUNT","RATE_DAILY","PERIOD"]
[340531913,1729419326155,-500.0,0.00027547,60]
[340531914,1729419326202,-500.0,0.00027547,60]
[340531915,1729419326248,-500.0,0.00027547,60]
[340531916,1729419326292,-500.0,0.00027547,60]
[340531917,1729419326337,-683.86,0.00027547,60]
[340531918,1729419326382,-500.0,0.00027547,60]
[340531919,1729419326426,-500.0,0.00027547,60]
[340531920,1729419326473,-500.0,0.00027547,60]
[340531921,1729419326523,-339.71216401,0.00027547,60]
[340531922,1729419326569,-576.50257897,0.00027547,60]
[340531923,1729419326614,-500.0,0.00027547,60]
[340531924,1729419326659,-977.76,0.00027547,60]
[340531925,1729419326705,-500.0,0.00027547,60]
[340531926,1729419326753,-500.0,0.00027547,60]
[340531927,1729419326800,-500.0,0.00027547,60]
[340531928,1729419326846,-753.91,0.00027547,30]
[340531929,1729419326892,-525.89375053,0.00027547,60]
[340531930,1729419326940,-500.0,0.00027547,60]
[340531931,1729419326987,-500.0,0.00027547,60]
[340531932,1729419327034,-500.0,0.00027547,60]
[340531933,1729419327080,-1373.45,0.00027547,60]
[340531934,1729419327127,-500.0,0.00027547,60]
[340531935,1729419327172,-500.0,0.00027547,60]
[340531936,1729419327220,-995.37,0.00027547,60]
[340531937,1729419327267,-500.0,0.00027547,60]
[340531938,1729419327312,-976.95,0.00027547,60]
[340531939,1729419327359,-507.64434507,0.00027547,60]
[340531940,1729419327404,-500.0,0.00027547,60]
[340531941,1729419327448,-1536.79,0.00027547,60]
[340531942,1729419327500,-547.1929448,0.00027547,60]
[340531943,1729419327548,-500.0,0.00027547,60]
[340531944,1729419327596,-500.0,0.00027547,60]
[340531945,1729419327643,-1834.09,0.00027547,60]
[340531946,1729419327689,-507.61538216,0.00027547,60]
[340531947,1729419327737,-191.05241395,0.00027547,60]
[340531948,1729419327788,-500.0,0.00027547,60]
[340531949,1729419327837,-1283.19,0.00027547,60]
[340531950,1729419327886,-642.12,0.00027547,60]
[340531951,1729419327935,-500.0,0.00027547,60]
[340531952,1729419327982,-503.34037082,0.00027547,60]
[340531953,1729419328027,-722.3,0.00027547,60]
[340531954,1729419328073,-500.0,0.00027547,60]
[340531955,1729419328119,-545.49,0.00027547,60]
[340531956,1729419328166,-522.44294197,0.00027547,60]
[340531957,1729419328215,-573.78711721,0.00027547,60]
[340531958,1729419328262,-500.0,0.00027547,60]
[340531959,1729419328309,-500.0,0.00027547,60]
[340531960,1729419328358,-200.0,0.00027547,60]
[340531961,1729419328406,-500.0,0.00027547,60]
[340531962,1729419328453,-816.19,0.00027547,60]
[340531963,1729419328504,-500.0,0.00027547,60]
[340531964,1729419328552,-500.0,0.00027547,60]
[340531965,1729419328600,-508.58619839,0.00027547,60]
[340531966,1729419328649,-998.04,0.00027547,60]
[340531967,1729419328699,-715.54,0.00027547,60]
[340531968,1729419328747,-638.0,0.00027547,60]
[340531969,1729419328797,-500.0,0.00027547,60]
[340531970,1729419328846,-500.0,0.00027547,60]
[340531971,1729419328894,-479.97040525,0.00027547,60]
[340531972,1729419328940,-529.88343147,0.00027547,60]
[340531973,1729419328987,-653.44,0.00027547,60]
[340531974,1729419329032,-654.0,0.00027547,60]
[340531975,1729419329084,-610.06,0.00027547,60]
[340531976,1729419329131,-500.0,0.00027547,60]
[340531977,1729419329179,-507.5900519,0.00027547,60]
[340531978,1729419329227,-517.31751283,0.00027547,60]
[340531979,1729419329277,-500.0,0.00027547,60]
[340531980,1729419329323,-1313.1,0.00027547,60]
[340531981,1729419329371,-500.0,0.00027547,60]
[340531982,1729419329417,-1128.8,0.00027547,60]
[340531983,1729419329464,-500.0,0.00027547,60]
[340531984,1729419329516,-705.62,0.00027547,60]
[340531985,1729419329563,-500.0,0.00027547,60]
[340531986,1729419329611,-500.0,0.00027547,60]
[340531987,1729419329659,-503.75331801,0.00027547,60]
[340531988,1729419329710,-500.0,0.00027547,60]
[340531989,1729419329762,-1017.0,0.00027547,60]
[340531990,1729419329815,-2422.71,0.00027547,60]
[340531991,1729419329870,-500.0,0.00027547,60]
[340531992,1729419329923,-500.0,0.00027547,60]
[340531993,1729419329974,-500.0,0.00027547,60]
[340531994,1729419330022,-793.37,0.00027547,60]
[340531995,1729419330072,-500.0,0.00027547,60]
[340531996,1729419330121,-1077.51,0.00027547,60]
[340531997,1729419330171,-1012.59,0.00027547,60]
[340531998,1729419330222,-500.0,0.00027547,60]
[340531999,1729419330274,-500.0,0.00027547,60]
[340532000,1729419330480,-500.0,0.00027547,60]
[340532001,1729419330533,-605.1,0.00027547,60]
[340532002,1729419330586,-553.57009175,0.00027547,60]
[340532003,1729419330640,-597.1,0.00027547,60]
[340532004,1729419330697,-971.16,0.00027547,60]
[340532005,1729419330750,-1020.08,0.00027547,60]
[340532006,1729419330803,-916.34,0.00027547,60]
[340532007,1729419330853,-651.69,0.00027547,60]
[340532008,1729419330909,-718.76,0.00027547,60]
[340532009,1729419330957,-826.26,0.00027547,60]
[340532010,1729419331011,-500.0,0.00027547,60]
[340532011,1729419331062,-695.34,0.00027547,60]
[340532012,1729419331111,-522.44,0.00027547,60]
[340532013,1729419331163,-1103.17,0.00027547,60]
[340532014,1729419331212,-500.0,0.00027547,60]
[340532015,1729419331256,-515.84872527,0.00027547,60]
[340532016,1729419331303,-500.0,0.00027547,60]
[340532017,1729419331348,-500.0,0.00027547,60]
[340532018,1729419331395,-500.0,0.00027547,60]
[340532019,1729419331440,-500.0,0.00027547,60]
[340532020,1729419331486,-500.0,0.00027547,60]
[340532021,1729419331532,-939.24,0.00027547,60]
[340532022,1729419331578,-1009.81,0.00027547,60]
[340532023,1729419331625,-500.0,0.00027547,30]
[340532024,1729419331671,-827.5,0.00027547,60]
[340532025,1729419331716,-1878.37,0.00027547,60]
[340532026,1729419331763,-924.24,0.00027547,60]
[340532027,1729419331807,-1033.03,0.00027547,60]
[340532028,1729419331852,-930.76,0.00027547,60]
[340532029,1729419331897,-585.76118277,0.00027547,60]
[340532030,1729419331945,-508.26877409,0.00027547,60]
[340532031,1729419331996,-500.0,0.00027547,60]
[340532032,1729419332043,-507.46284567,0.00027547,60]
[340532033,1729419332087,-913.38,0.00027547,60]
[340532034,1729419332134,-629.16738717,0.00027547,60]
[340532035,1729419332184,-500.0,0.00027547,60]
[340532036,1729419332231,-1075.72,0.00027547,60]
[340532037,1729419332279,-500.0,0.00027547,60]
[340532038,1729419332330,-933.71,0.00027547,60]
[340532039,1729419332380,-1942.87,0.00027547,60]
[340532040,1729419332430,-500.0,0.00027547,60]
[340532041,1729419332484,-683.73,0.00027547,60]
[340532042,1729419332534,-500.0,0.00027547,60]
[340532043,1729419332587,-500.0,0.00027547,60]
[340532044,1729419332635,-534.30213455,0.00027547,60]
[340532045,1729419332687,-500.0,0.00027547,60]
[340532046,1729419332742,-500.0,0.00027547,60]
[340532047,1729419332793,-500.0,0.00027547,60]
[340532048,1729419332843,-692.24,0.00027547,60]
[340532049,1729419332892,-1952.53,0.00027547,30]
[340532050,1729419332939,-500.0,0.00027547,60]
[340532051,1729419332983,-500.0,0.00027547,60]
[340532052,1729419333031,-853.36,0.00027547,60]
[340532053,1729419333081,-1000.49,0.00027547,60]
[340532054,1729419333134,-532.19665316,0.00027547,60]
[340532055,1729419333184,-516.36832663,0.00027547,60]
[340532056,1729419333234,-711.37,0.00027547,60]
[340532057,1729419333283,-685.33,0.00027547,60]
[340532058,1729419333333,-172.70896641,0.00027547,60]
[340532059,1729419333384,-949.34,0.00027547,60]
[340532060,1729419333437,-500.0,0.00027547,60]
[340532061,1729419333490,-531.20254832,0.00027547,60]
[340532062,1729419333543,-965.19,0.00027547,60]
[340532063,1729419333594,-500.0,0.00027547,60]
[340532064,1729419333646,-531.76,0.00027547,60]
[340532065,1729419333700,-844.86,0.00027547,60]
[340532066,1729419333751,-500.0,0.00027547,60]
[340532067,1729419333802,-156.78082795,0.00027547,60]
[340532068,1729419333852,-500.0,0.00027547,60]
[340532069,1729419333901,-527.27270908,0.00027547,60]
[340532070,1729419333951,-1181.25,0.00027547,60]
[340532071,1729419333997,-485.83092938,0.00027547,60]
[340532072,1729419334045,-523.3469937,0.00027547,60]
[340532073,1729419334094,-500.0,0.00027547,60]
[340532074,1729419334142,-2310.58,0.00027547,60]
[340532075,1729419334190,-778.47,0.00027547,60]
[340532076,1729419334240,-500.0,0.00027547,60]
[340532077,1729419334289,-767.08,0.00027547,60]
[340532078,1729419334337,-510.33627212,0.00027547,60]
[340532079,1729419334384,-828.5,0.00027547,60]
[340532080,1729419334433,-1125.04,0.00027547,60]
[340532081,1729419334490,-500.0,0.00027547,60]
[340532082,1729419334541,-500.0,0.00027547,60]
[340532083,1729419334591,-841.91,0.00027547,60]
[340532084,1729419334640,-612.09,0.00027547,60]
[340532085,1729419334844,-799.85,0.00027547,60]
[340532086,1729419334898,-500.0,0.00027547,60]
[340532087,1729419334951,-500.0,0.00027547,60]
[340532088,1729419335003,-500.0,0.00027547,60]
[340532089,1729419335054,-506.26570963,0.00027547,60]
[340532090,1729419335104,-1212.9,0.00027547,60]
[340532091,1729419335152,-996.36,0.00027547,60]
[340532092,1729419335200,-988.73,0.00027547,60]
[340532093,1729419335248,-519.65497837,0.00027547,60]
[340532094,1729419335298,-884.02,0.00027547,60]
[340532095,1729419335352,-385.94431942,0.00027547,60]
[340532096,1729419335404,-944.68,0.00027547,60]
[340532097,1729419335455,-500.0,0.00027547,60]
[340532098,1729419335510,-715.93,0.00027547,60]
[340532099,1729419335558,-500.0,0.00027547,60]
[340532100,1729419335605,-500.0,0.00027547,60]
[340532101,1729419335654,-525.8,0.00027547,60]
[340532102,1729419335705,-513.43562366,0.00027547,60]
[340532103,1729419335752,-500.0,0.00027547,60]
[340532104,1729419335801,-500.0,0.00027547,60]
[340532105,1729419335850,-560.59169029,0.00027547,60]
[340532106,1729419335898,-2081.06,0.00027547,60]
[340532107,1729419335945,-500.0,0.00027547,60]
[340532108,1729419335990,-764.5,0.00027547,60]
[340532109,1729419336034,-500.0,0.00027547,60]
[340532110,1729419336081,-500.0,0.00027547,60]
[340532111,1729419336127,-500.0,0.00027547,60]
[340532112,1729419336171,-500.0,0.00027547,60]
[340532113,1729419336219,-500.0,0.00027547,60]
[340532114,1729419336266,-535.14526781,0.00027547,60]
[340532115,1729419336316,-926.1,0.00027547,60]
[340532116,1729419336366,-500.0,0.00027547,60]
[340532117,1729419336413,-500.0,0.00027547,60]
[340532118,1729419336460,-500.0,0.00027547,60]
[340532119,1729419336517,-783.93,0.00027547,60]
[340532120,1729419336567,-685.1,0.00027547,60]
[340532121,1729419336612,-500.0,0.00027547,60]
[340532122,1729419336665,-500.0,0.00027547,60]
[340532123,1729419336714,-984.9,0.00027547,60]
[340532124,1729419336763,-500.0,0.00027547,60]
[340532125,1729419336814,-1543.19,0.00027547,60]
[340532126,1729419336862,-2057.47,0.00027547,60]
[340532127,1729419336909,-500.0,0.00027547,60]
[340532128,1729419336957,-998.64,0.00027547,60]
[340532129,1729419337003,-529.11682474,0.00027547,60]
[340532130,1729419337050,-500.0,0.00027547,60]
[340532131,1729419337097,-564.66619638,0.00027547,60]
[340532132,1729419337143,-399.91273558,0.00027547,60]
[340532133,1729419337189,-500.0,0.00027547,60]
[340532134,1729419337236,-1248.6,0.00027547,60]
[340532135,1729419337283,-797.41,0.00027547,60]
[340532136,1729419337328,-2521.03,0.00027547,60]
[340532137,1729419337375,-919.91,0.00027547,60]
[340532138,1729419337421,-500.0,0.00027547,60]
[340532139,1729419337468,-504.65949662,0.00027547,60]
[340532140,1729419337521,-500.0,0.00027547,60]
[340532141,1729419337568,-968.69,0.00027547,60]
[340532142,1729419337613,-1264.41,0.00027547,60]
[340532143,1729419337660,-922.77,0.00027547,60]
[340532144,1729419337707,-500.0,0.00027547,30]
[340532145,1729419337753,-639.78,0.00027547,60]
[340532146,1729419337798,-500.0,0.00027547,60]
[340532147,1729419337842,-971.31,0.00027547,60]
[340532148,1729419337888,-742.41,0.00027547,60]
[340532149,1729419337933,-659.15,0.00027547,60]
[340532150,1729419337979,-173.60387608,0.00027547,60]
[340532151,1729419338023,-500.0,0.00027547,60]
[340532152,1729419338070,-916.09,0.00027547,60]
[340532153,1729419338118,-655.27,0.00027547,60]
[340532154,1729419338169,-500.0,0.00027547,60]
[340532155,1729419338219,-500.0,0.00027547,60]
[340532156,1729419338275,-500.0,0.00027547,60]
[340532157,1729419338326,-747.67,0.00027547,60]
[340532158,1729419338378,-814.82,0.00027547,60]
[340532159,1729419338429,-522.43271487,0.00027547,60]
[340532160,1729419338479,-500.0,0.00027547,60]
[340532161,1729419338540,-46076.59,0.00027547,60]
[340532162,1729419338597,-500.0,0.00027547,60]
[340532163,1729419338648,-511.46554174,0.00027547,60]
[340532164,1729419338698,-973.82,0.00027547,60]
[340532165,1729419338749,-500.0,0.00027547,60]
[340532166,1729419338798,-797.42,0.00027547,60]
[340532167,1729419339001,-869.12,0.00027547,60]
[340532168,1729419339059,-786.44,0.00027547,60]
[340532169,1729419339108,-500.0,0.00027547,60]
[340532170,1729419339162,-1119.9,0.00027547,60]
[340532171,1729419339210,-575.82,0.00027547,60]
[340532172,1729419339257,-600.4,0.00027547,60]
[340532173,1729419339306,-500.0,0.00027547,60]
[340532174,1729419339355,-1073.95,0.00027547,60]
[340532175,1729419339405,-500.0,0.00027547,60]
[340532176,1729419339456,-1271.39,0.00027547,60]
[340532177,1729419339507,-507.46875371,0.00027547,60]
[340532178,1729419339556,-574.67,0.00027547,60]
[340532179,1729419339609,-517.15200912,0.00027547,60]
[340532180,1729419339656,-903.44,0.00027547,60]
[340532181,1729419339704,-981.94,0.00027547,60]
[340532182,1729419339756,-500.0,0.00027547,60]
[340532183,1729419339805,-500.0,0.00027547,60]
[340532184,1729419339852,-500.0,0.00027547,60]
[340532185,1729419339899,-500.0,0.00027547,60]
[340532186,1729419339944,-698.05,0.00027547,60]
[340532187,1729419339988,-500.0,0.00027547,60]
[340532188,1729419340033,-500.0,0.00027547,60]
[340532189,1729419340078,-488.53732467,0.00027547,60]
[340532190,1729419340123,-505.50486071,0.00027547,60]
[340532191,1729419340170,-769.32,0.00027547,60]
[340532192,1729419340220,-1059.29,0.00027547,60]
[340532193,1729419340268,-500.0,0.00027547,60]
[340532194,1729419340315,-662.26,0.00027547,60]
[340532195,1729419340364,-929.83,0.00027547,60]
[340532196,1729419340412,-500.0,0.00027547,60]
[340532197,1729419340467,-513.06374759,0.00027547,60]
[340532198,1729419340519,-1013.68,0.00027547,60]
[340532199,1729419340568,-635.77,0.00027547,60]
[340532200,1729419340619,-1739.44,0.00027547,60]
[340532201,1729419340668,-1255.57,0.00027547,60]
[340532202,1729419340718,-500.0,0.00027547,60]
[340532203,1729419340768,-1140.61,0.00027547,60]
[340532204,1729419340816,-510.54727357,0.00027547,60]
[340532205,1729419340864,-500.0,0.00027547,60]
[340532206,1729419340913,-514.99253778,0.00027547,60]
[340532207,1729419340962,-500.0,0.00027547,60]
[340532208,1729419341013,-500.0,0.00027547,60]
[340532209,1729419341061,-650.82,0.00027547,60]
[340532210,1729419341110,-826.88,0.00027547,60]
[340532211,1729419341157,-962.81,0.00027547,60]
[340532212,1729419341206,-517.37,0.00027547,60]
[340532213,1729419341253,-500.0,0.00027547,60]
[340532214,1729419341300,-500.0,0.00027547,60]
[340532215,1729419341346,-1508.26,0.00027547,60]
[340532216,1729419341394,-500.0,0.00027547,60]
[340532217,1729419341441,-1209.57,0.00027547,60]
[340532218,1729419341492,-3134.78,0.00027547,30]
[340532219,1729419341539,-500.0,0.00027547,60]
[340532220,1729419341590,-731.27,0.00027547,60]
[340532221,1729419341639,-500.0,0.00027547,60]
[340532222,1729419341688,-903.57,0.00027547,60]
[340532223,1729419341736,-500.0,0.00027547,60]
[340532224,1729419341791,-1721.65,0.00027547,60]
[340532225,1729419341840,-1568.74,0.00027547,60]
[340532226,1729419341887,-500.0,0.00027547,60]
[340532227,1729419341936,-601.42,0.00027547,60]
[340532228,1729419341983,-633.59,0.00027547,60]
[340532229,1729419342030,-509.43059029,0.00027547,60]
[340532230,1729419342076,-500.0,0.00027547,60]
[340532231,1729419342122,-500.0,0.00027547,60]
[340532232,1729419342167,-1024.06,0.00027547,60]
[340532233,1729419342216,-1763.39,0.00027547,60]
[340532234,1729419342265,-500.0,0.00027547,60]
[340532235,1729419342314,-281.23839869,0.00027547,60]
[340532236,1729419342364,-500.0,0.00027547,60]
[340532237,1729419342413,-500.0,0.00027547,60]
[340532238,1729419342462,-500.0,0.00027547,60]
[340532239,1729419342516,-500.0,0.00027547,60]
[340532240,1729419342570,-836.45,0.00027547,60]
[340532241,1729419342621,-1477.24,0.00027547,60]
[340532242,1729419342674,-500.0,0.00027547,60]
[340532243,1729419342724,-847.85,0.00027547,60]
[340532244,1729419342774,-849.1,0.00027547,60]
[340532245,1729419342822,-1171.76,0.00027547,60]
[340532246,1729419343004,-522.93145036,0.00027547,60]
[340532247,1729419343080,-1128.3,0.00027547,60]
[340532248,1729419343140,-871.36,0.00027547,60]
[340532249,1729419343199,-735.9,0.00027547,60]
[340532250,1729419343254,-2161.73,0.00027547,60]
[340532251,1729419343309,-151.75539176,0.00027547,30]
[340532252,1729419343365,-553.56,0.00027547,60]
[340532253,1729419343420,-1417.51,0.00027547,60]
[340532254,1729419343473,-500.0,0.00027547,60]
[340532255,1729419343530,-210.57317922,0.00027547,60]
[340532256,1729419343582,-637.5895596,0.00027547,60]
[340532257,1729419343634,-500.0,0.00027547,60]
[340532258,1729419343684,-1238.45,0.00027547,60]
[340532259,1729419343733,-500.0,0.00027547,60]
[340532260,1729419343785,-1095.4,0.00027547,60]
[340532261,1729419343836,-982.24,0.00027547,60]
[340532262,1729419343888,-569.59048773,0.00027547,60]
[340532263,1729419343942,-613.58,0.00027547,60]
[340532264,1729419343993,-375.50230505,0.00027547,60]
[340532265,1729419344043,-535.98,0.00027547,60]
[340532266,1729419344092,-500.0,0.00027547,60]
[340532267,1729419344147,-1745.8,0.00027547,60]
[340532268,1729419344200,-500.0,0.00027547,60]
[340532269,1729419344250,-896.17,0.00027547,60]
[340532270,1729419344301,-500.0,0.00027547,60]
[340532271,1729419344351,-774.83,0.00027547,60]
[340532272,1729419344402,-582.74,0.00027547,60]
[340532273,1729419344454,-944.95,0.00027547,60]
[340532274,1729419344508,-822.38,0.00027547,60]
[340532275,1729419344562,-910.1,0.00027547,60]
[340532276,1729419344615,-500.0,0.00027547,60]
[340532277,1729419344670,-3070.44,0.00027547,60]
[340532278,1729419344727,-500.33,0.00027547,60]
[340532279,1729419344779,-500.0,0.00027547,60]
[340532280,1729419344831,-638.61,0.00027547,60]
[340532281,1729419344881,-1471.25,0.00027547,60]
[340532282,1729419344933,-530.93,0.00027547,60]
[340532283,1729419344983,-500.0,0.00027547,60]
[340532284,1729419345034,-1602.18,0.00027547,60]
[340532285,1729419345085,-500.0,0.00027547,60]
[340532286,1729419345137,-500.0,0.00027547,60]
[340532287,1729419345190,-1186.78,0.00027547,60]
[340532288,1729419345245,-500.0,0.00027547,60]
[340532289,1729419345300,-6145.44,0.00027547,60]
[340532290,1729419345354,-500.0,0.00027547,60]
[340532291,1729419345410,-500.0,0.00027547,60]
[340532292,1729419345465,-1222.9,0.00027547,60]
[340532293,1729419345524,-500.0,0.00027547,60]
[340532294,1729419345580,-500.0,0.00027547,60]
[340532295,1729419345635,-500.0,0.00027547,60]
[340532296,1729419345689,-500.0,0.00027547,60]
[340532297,1729419345743,-500.0,0.00027547,60]
[340532298,1729419345795,-514.61214159,0.00027547,60]
[340532299,1729419345849,-942.98,0.00027547,60]
[340532300,1729419345904,-574.31,0.00027547,60]
[340532301,1729419345955,-667.21,0.00027547,60]
[340532302,1729419346007,-1036.56,0.00027547,30]
[340532303,1729419346057,-150.0,0.000278,120]
[340532304,1729419346107,-723.0,0.00027821,60]
[340532305,1729419346158,-500.0,0.00027821,60]
[340532306,1729419346206,-500.0,0.00027821,30]
[340532307,1729419346255,-500.0,0.00027821,60]
[340532308,1729419346301,-500.0,0.00027821,60]
[340532309,1729419346348,-500.0,0.00027821,60]
[340532310,1729419346393,-518.33914105,0.00027821,60]
[340532311,1729419346438,-500.0,0.00027821,60]
[340532312,1729419346484,-500.0,0.00027821,60]
[340532313,1729419346533,-500.0,0.00027821,60]
[340532314,1729419346579,-516.14574857,0.00027821,60]
[340532315,1729419346624,-500.0,0.00027821,60]
[340532316,1729419346670,-512.51356271,0.00027821,60]
[340532317,1729419346717,-597.08962284,0.00027821,60]
[340532318,1729419346766,-500.0,0.00027821,60]
[340532319,1729419346813,-500.0,0.00027821,60]
[340532320,1729419346860,-901.38,0.00027821,60]
[340532321,1729419346908,-500.0,0.00027821,60]
[340532322,1729419346956,-341.89122345,0.00027821,60]
[340532323,1729419347170,-976.18,0.00027821,60]
[340532324,1729419347227,-500.0,0.00027821,60]
[340532325,1729419347280,-500.0,0.00027821,60]
[340532326,1729419347336,-500.0,0.00027821,60]
[340532327,1729419347389,-500.0,0.00027821,60]
[340532328,1729419347444,-519.31108888,0.00027821,60]
[340532329,1729419347501,-500.0,0.00027821,60]
[340532330,1729419347552,-984.84,0.00027821,60]
[340532331,1729419347602,-500.0,0.00027821,60]
[340532332,1729419347653,-500.0,0.00027821,60]
[340532333,1729419347700,-500.0,0.00027821,60]
[340532334,1729419347748,-500.0,0.00027821,60]
[340532335,1729419347794,-500.0,0.00027821,60]
[340532336,1729419347840,-500.0,0.00027821,60]
[340532337,1729419347884,-1265.39,0.00027821,60]
[340532338,1729419347929,-524.76752071,0.00027821,60]
[340532339,1729419347975,-500.0,0.00027821,60]
[340532340,1729419348020,-756.35,0.00027821,60]
[340532341,1729419348066,-518.31040456,0.00027821,60]
[340532342,1729419348112,-3615.14,0.00027821,60]
[340532343,1729419348157,-642.92893519,0.00027821,60]
[340532344,1729419348204,-500.0,0.00027821,60]
[340532345,1729419348251,-526.53508707,0.00027821,60]
[340532346,1729419348297,-515.27522652,0.00027821,60]
[340532347,1729419348343,-500.0,0.00027821,60]
[340532348,1729419348390,-906.49,0.00027821,60]
[340532349,1729419348435,-500.0,0.00027821,60]
[340532350,1729419348482,-500.0,0.00027821,60]
[340532351,1729419348529,-826.69,0.00027821,60]
[340532352,1729419348573,-500.0,0.00027821,60]
[340532353,1729419348617,-541.41682391,0.00027821,60]
[340532354,1729419348665,-500.0,0.00027821,60]
[340532355,1729419348710,-500.0,0.00027821,60]
[340532356,1729419348756,-500.0,0.00027821,60]
[340532357,1729419348800,-500.0,0.00027821,60]
[340532358,1729419348844,-500.0,0.00027821,60]
[340532359,1729419348889,-500.0,0.00027821,60]
[340532360,1729419348941,-527.72914711,0.00027821,60]
[340532361,1729419348991,-838.51,0.00027821,60]
[340532362,1729419349038,-500.0,0.00027821,60]
[340532363,1729419349083,-1250.67,0.00027821,60]
[340532364,1729419349133,-500.0,0.00027821,60]
[340532365,1729419349177,-557.05,0.00027821,60]
[340532366,1729419349226,-500.0,0.00027821,60]
[340532367,1729419349273,-500.0,0.00027821,60]
[340532368,1729419349319,-500.0,0.00027821,60]
[340532369,1729419349366,-500.0,0.00027821,60]
[340532370,1729419349414,-740.62,0.00027821,60]
[340532371,1729419349462,-500.0,0.00027821,60]
[340532372,1729419349513,-500.0,0.00027821,60]
[340532373,1729419349561,-653.24,0.00027821,60]
[340532374,1729419349606,-781.83,0.00027821,60]
[340532375,1729419349654,-500.0,0.00027821,60]
[340532376,1729419349699,-500.0,0.00027821,60]
[340532377,1729419349750,-563.84659226,0.00027821,60]
[340532378,1729419349799,-574.32262629,0.00027821,60]
[340532379,1729419349846,-500.0,0.00027821,60]
[340532380,1729419349893,-567.31,0.00027821,60]
[340532381,1729419349942,-500.0,0.00027821,60]
[340532382,1729419349988,-500.0,0.00027821,60]
[340532383,1729419350033,-500.0,0.00027821,60]
[340532384,1729419350078,-500.0,0.00027821,60]
[340532385,1729419350122,-500.0,0.00027821,60]
[340532386,1729419350166,-376.27633713,0.00027821,60]
[340532387,1729419350210,-1000.0,0.00027821,60]
[340532388,1729419350255,-500.0,0.00027821,60]
[340532389,1729419350298,-500.0,0.00027821,60]
[340532390,1729419350348,-642.87,0.00027821,60]
[340532391,1729419350392,-644.73,0.00027821,60]
[340532392,1729419350438,-506.03279747,0.00027821,60]
[340532393,1729419350485,-500.0,0.00027821,60]
[340532394,1729419350536,-540.36753709,0.00027821,60]
[340532395,1729419350584,-794.65,0.00027821,60]
[340532396,1729419350632,-500.0,0.00027821,60]
[340532397,1729419350832,-1157.77,0.00027821,60]
[340532398,1729419350880,-575.52,0.00027821,60]
[340532399,1729419350926,-666.47,0.00027821,60]
[340532400,1729419350971,-558.89757587,0.00027821,60]
[340532401,1729419351018,-724.23,0.00027821,60]
[340532402,1729419351064,-500.0,0.00027821,60]
[340532403,1729419351110,-512.46783534,0.00027821,60]
[340532404,1729419351155,-500.0,0.00027821,60]
[340532405,1729419351199,-533.09756055,0.00027821,60]
[340532406,1729419351246,-683.86,0.00027821,60]
[340532407,1729419351292,-511.55784296,0.00027821,60]
[340532408,1729419351339,-500.0,0.00027821,60]
[340532409,1729419351388,-500.0,0.00027821,60]
[340532410,1729419351434,-500.0,0.00027821,60]
[340532411,1729419351481,-977.76,0.00027821,60]
[340532412,1729419351531,-502.05676141,0.00027821,60]